fUST/lending_fUST_20250925
["ID","MTS","AMOUNT","RATE_DAILY","PERIOD"]
[387675542,1758805838600,-484.90623084,0.00019609,2]
[387675543,1758805838610,-480.0,0.00019609,2]
[387675544,1758805838619,-480.0,0.00019609,2]
[387675545,1758805838629,-480.0,0.00019609,2]
[387675546,1758805838639,-480.0,0.00019609,2]
[387675547,1758805838649,-480.0,0.00019609,2]
[387675548,1758805838658,-480.0,0.00019609,2]
[387675549,1758805838668,-486.2176653,0.00019609,2]
[387675550,1758805838677,-373.60513921,0.00019609,2]
[387675551,1758805838686,-497.31148601,0.00019609,2]
[387675552,1758805838696,-480.0,0.00019609,2]
[387675553,1758805838783,-483.74085392,0.00019609,2]
[387675554,1758805838793,-490.25574813,0.00019609,2]
[387675555,1758805838803,-480.0,0.00019609,2]
[387675556,1758805838812,-480.0,0.00019609,2]
[387675557,1758805838822,-480.0,0.00019609,2]
[387675558,1758805838832,-480.0,0.00019609,2]
[387675559,1758805838841,-480.0,0.00019609,2]
[387675560,1758805838851,-515.91826245,0.00019609,2]
[387675561,1758805838862,-234.53711368,0.00019609,2]
[387675562,1758805838877,-480.0,0.00019609,2]
[387675563,1758805838886,-480.0,0.00019609,2]
[387675564,1758805838896,-480.0,0.00019609,2]
[387675565,1758805838907,-480.0,0.00019609,2]
[387675566,1758805838916,-390.72337441,0.00019609,2]
[387675567,1758805838926,-480.0,0.00019609,2]
[387675568,1758805838936,-489.44782395,0.00019609,2]
[387675569,1758805838945,-480.0,0.00019609,2]
[387675570,1758805838955,-480.0,0.00019609,2]
[387675571,1758805838965,-245.57049134,0.00019609,2]
[387675572,1758805838974,-480.0,0.00019609,2]
[387675573,1758805838983,-413.83482248,0.00019609,2]
[387675574,1758805838993,-480.0,0.00019609,2]
[387675575,1758805839003,-480.0,0.00019609,2]
[387675576,1758805839013,-422.77266283,0.00019609,2]
[387675577,1758805839022,-480.0,0.00019609,2]
[387675578,1758805839033,-480.0,0.00019609,2]
[387675579,1758805839042,-480.0,0.00019609,2]
[387675580,1758805839051,-480.0,0.00019609,2]
[387675581,1758805839061,-480.0,0.00019609,2]
[387675582,1758805839070,-480.0,0.00019609,2]
[387675583,1758805839079,-480.0,0.00019609,2]
[387675584,1758805839089,-480.0,0.00019609,2]
[387675585,1758805839098,-480.0,0.00019609,2]
[387675586,1758805839107,-480.0,0.00019609,2]
[387675587,1758805839116,-480.0,0.00019609,2]
[387675588,1758805839125,-540.0,0.00019609,2]
[387675589,1758805839135,-480.0,0.00019609,2]
[387675590,1758805839144,-480.0,0.00019609,2]
[387675591,1758805839154,-480.0,0.00019609,2]
[387675592,1758805839163,-480.0,0.00019609,2]
[387675593,1758805839172,-480.0,0.00019609,2]
[387675594,1758805839182,-480.0,0.00019609,2]
[387675595,1758805839191,-480.0,0.00019609,2]
[387675596,1758805839200,-597.15028149,0.00019609,2]
[387675597,1758805839210,-480.0,0.00019609,2]
[387675598,1758805839219,-480.0,0.00019609,2]
[387675599,1758805839229,-480.0,0.00019609,2]
[387675600,1758805839238,-195.1340158,0.00019609,2]
[387675601,1758805839247,-480.0,0.00019609,2]
[387675602,1758805839257,-480.0,0.00019609,2]
[387675603,1758805839266,-471.05675966,0.00019609,2]
[387675604,1758805839275,-482.42374985,0.00019609,2]
[387675605,1758805839286,-480.0,0.00019609,2]
[387675606,1758805839295,-480.0,0.00019609,2]
[387675607,1758805839305,-480.0,0.00019609,2]
[387675608,1758805839315,-486.12380103,0.00019609,2]
[387675609,1758805839324,-515.5,0.00019609,2]
[387675610,1758805839334,-480.0,0.00019609,2]
[387675611,1758805839343,-487.87615042,0.00019609,2]
[387675612,1758805839353,-529.37510067,0.00019609,2]
[387675613,1758805839363,-481.9092503,0.00019609,2]
[387675614,1758805839373,-480.0,0.00019609,2]
[387675615,1758805839382,-480.0,0.00019609,2]
[387675616,1758805839393,-480.0,0.00019609,2]
[387675617,1758805839402,-488.99272708,0.00019609,2]
[387675618,1758805839412,-480.0,0.00019609,2]
[387675619,1758805839422,-480.0,0.00019609,2]
[387675620,1758805839431,-421.69987645,0.00019609,2]
[387675621,1758805839442,-492.08,0.00019609,2]
[387675622,1758805839451,-480.0,0.00019609,2]
[387675623,1758805839461,-480.0,0.00019609,2]
[387675624,1758805839471,-480.0,0.00019609,2]
[387675625,1758805839481,-493.37713343,0.00019609,2]
[387675626,1758805839491,-480.0,0.00019609,2]
[387675627,1758805839501,-480.0,0.00019609,2]
[387675628,1758805839510,-480.0,0.00019609,2]
[387675629,1758805839520,-480.0,0.00019609,2]
[387675630,1758805839529,-480.0,0.00019609,2]
[387675631,1758805839540,-480.0,0.00019609,2]
[387675632,1758805839549,-480.0,0.00019609,2]
[387675633,1758805839559,-438.16704669,0.00019609,2]
[387675635,1758805839570,-480.0,0.00019609,2]
[387675636,1758805839580,-480.0,0.00019609,2]
[387675637,1758805839590,-480.0,0.00019609,2]
[387675638,1758805839600,-480.0,0.00019609,2]
[387675639,1758805839610,-480.0,0.00019609,2]
[387675640,1758805839619,-480.0,0.00019609,2]
[387675641,1758805839630,-480.0,0.00019609,2]
[387675642,1758805839640,-480.0,0.00019609,2]
[387675643,1758805839650,-480.0,0.00019609,2]
[387675644,1758805839660,-480.0,0.00019609,2]
[387675645,1758805839670,-615.70177796,0.0001961,2]
[387675647,1758805839679,-480.0,0.0001961,2]
[387675648,1758805839688,-480.0,0.0001961,2]
[387675649,1758805839698,-480.0,0.0001961,2]
[387675650,1758805839707,-480.0,0.0001961,2]
[387675651,1758805839717,-480.0,0.0001961,2]
[387675652,1758805839727,-480.0,0.0001961,2]
[387675653,1758805839736,-480.0,0.0001961,2]
[387675655,1758805839746,-480.0,0.0001961,2]
[387675657,1758805839756,-480.0,0.0001961,2]
[387675658,1758805839766,-480.0,0.0001961,2]
[387675660,1758805839775,-480.0,0.0001961,2]
[387675661,1758805839786,-481.89564506,0.0001961,2]
[387675662,1758805839796,-480.0,0.0001961,2]
[387675663,1758805839806,-480.0,0.0001961,2]
[387675664,1758805839815,-480.0,0.0001961,2]
[387675665,1758805839825,-480.0,0.0001961,2]
[387675666,1758805839834,-1958.22,0.0001961,2]
[387675667,1758805839844,-480.0,0.0001961,2]
[387675669,1758805839853,-480.0,0.0001961,2]
[387675672,1758805839874,-480.0,0.0001961,2]
[387675673,1758805839885,-480.0,0.0001961,2]
[387675675,1758805839895,-480.0,0.0001961,2]
[387675677,1758805839905,-480.0,0.0001961,2]
[387675679,1758805839915,-480.0,0.0001961,2]
[387675680,1758805839926,-480.0,0.0001961,2]
[387675682,1758805839937,-480.0,0.0001961,2]
[387675683,1758805839946,-500.7,0.0001961,2]
[387675684,1758805839957,-480.0,0.0001961,2]
[387675685,1758805839968,-480.0,0.0001961,2]
[387675686,1758805839978,-618.88,0.0001961,2]
[387675687,1758805839989,-480.0,0.0001961,2]
[387675688,1758805839998,-480.0,0.0001961,2]
[387675689,1758805840008,-480.0,0.00019611,2]
[387675690,1758805840018,-480.0,0.00019611,2]
[387675691,1758805840027,-468.93907949,0.00019611,2]
[387675692,1758805840038,-480.0,0.00019611,2]
[387675693,1758805840047,-488.28916482,0.00019611,2]
[387675694,1758805840057,-480.0,0.00019611,2]
[387675695,1758805840067,-252.51594518,0.00019611,2]
[387675697,1758805840076,-480.0,0.00019611,2]
[387675699,1758805840086,-425.26702985,0.00019611,2]
[387675700,1758805840096,-480.0,0.00019611,2]
[387675701,1758805840106,-544.1873492,0.00019611,2]
[387675702,1758805840117,-483.32793954,0.00019611,2]
[387675703,1758805840127,-480.0,0.00019611,2]
[387675705,1758805840136,-480.0,0.00019611,2]
[387675707,1758805840145,-587.82191177,0.00019611,2]
[387675709,1758805840155,-480.0,0.00019611,2]
[387675711,1758805840164,-480.0,0.00019611,2]
[387675713,1758805840174,-480.0,0.00019611,2]
[387675715,1758805840184,-480.0,0.00019611,2]
[387675717,1758805840194,-480.0,0.00019611,2]
[387675719,1758805840203,-480.0,0.00019611,2]
[387675721,1758805840213,-460.18280044,0.00019611,2]
[387675723,1758805840223,-480.0,0.00019611,2]
[387675725,1758805840232,-480.0,0.00019611,2]
[387675727,1758805840241,-487.8373923,0.00019611,2]
[387675729,1758805840251,-498.06943508,0.00019611,2]
[387675731,1758805840260,-480.0,0.00019611,2]
[387675733,1758805840270,-480.0,0.00019611,2]
[387675735,1758805840280,-474.92346152,0.00019611,2]
[387675738,1758805840292,-480.0,0.00019611,2]
[387675740,1758805840302,-480.0,0.00019611,2]
[387675742,1758805840311,-458.54071435,0.00019611,2]
[387675744,1758805840321,-480.0,0.00019611,2]
[387675746,1758805840331,-480.0,0.00019611,2]
[387675748,1758805840341,-480.0,0.00019611,2]
[387675750,1758805840351,-480.0,0.00019611,2]
[387675752,1758805840361,-480.0,0.00019611,2]
[387675754,1758805840371,-480.0,0.00019611,2]
[387675756,1758805840381,-487.05152714,0.00019611,2]
[387675758,1758805840391,-480.0,0.00019611,2]
[387675760,1758805840400,-480.0,0.00019611,2]
[387675762,1758805840410,-480.0,0.00019611,2]
[387675764,1758805840420,-480.0,0.00019611,2]
[387675766,1758805840429,-420.24981717,0.00019611,2]
[387675768,1758805840439,-480.0,0.00019611,2]
[387675770,1758805840448,-480.0,0.00019611,2]
[387675772,1758805840459,-480.0,0.00019611,2]
[387675774,1758805840469,-480.0,0.00019611,2]
[387675776,1758805840478,-480.0,0.00019611,2]
[387675778,1758805840488,-484.91200207,0.00019611,2]
[387675780,1758805840498,-480.0,0.00019611,2]
[387675782,1758805840508,-294.60838185,0.00019611,2]
[387675784,1758805840518,-480.0,0.00019616,2]
[387675786,1758805840528,-287.43382295,0.00019616,2]
[387675788,1758805840538,-480.0,0.00019616,2]
[387675790,1758805840548,-480.0,0.00019616,2]
[387675792,1758805840557,-480.0,0.00019616,2]
[387675794,1758805840567,-480.0,0.00019616,2]
[387675795,1758805840577,-490.73014248,0.00019616,2]
[387675797,1758805840586,-484.0659597,0.00019616,2]
[387675808,1758805840686,-480.0,0.00019616,2]
[387675810,1758805840703,-480.0,0.00019616,2]
[387675813,1758805840713,-480.0,0.00019616,2]
[387675814,1758805840722,-480.0,0.00019616,2]
[387675817,1758805840732,-480.0,0.00019616,2]
[387675819,1758805840742,-559.99,0.00019616,2]
[387675821,1758805840751,-480.0,0.00019616,2]
[387675823,1758805840761,-469.06264268,0.00019617,2]
[387675825,1758805840770,-480.0,0.00019617,2]
[387675827,1758805840783,-480.0,0.00019617,2]
[387675829,1758805840795,-200.0,0.00019617,2]
[387675831,1758805840804,-480.0,0.00019617,2]
[387675833,1758805840813,-480.0,0.00019617,2]
[387675835,1758805840823,-500.0,0.00019673,2]
[387675837,1758805840832,-508.72805618,0.00019673,2]
[387675839,1758805840841,-500.0,0.00019673,2]
[387675841,1758805840851,-500.0,0.00019673,2]
[387675843,1758805840860,-436.8506107,0.00019673,2]
[387675845,1758805840873,-500.0,0.00019673,2]
[387675847,1758805840883,-308.0146575,0.00019673,2]
[387675849,1758805840893,-500.0,0.00019673,2]
[387675851,1758805840902,-500.01960392,0.00019673,2]
[387675853,1758805840913,-500.0,0.00019673,2]
[387675855,1758805840922,-855.95,0.00019783,2]
[387675857,1758805840932,-605.41447223,0.00019873,2]
[387675859,1758805840942,-502.75253953,0.00019873,2]
[387675860,1758805840952,-500.0,0.00019873,2]
[387675863,1758805840962,-500.0,0.00019873,2]
[387675864,1758805840972,-480.0,0.00019882,2]
[387675866,1758805840981,-480.0,0.00019882,2]
[387675868,1758805840990,-480.0,0.00019882,2]
[387675870,1758805840999,-480.0,0.00019882,2]
[387675872,1758805841009,-480.0,0.00019882,2]
[387675874,1758805841017,-480.0,0.00019882,2]
[387675876,1758805841026,-480.0,0.00019882,2]
[387675878,1758805841036,-480.0,0.00019882,2]
[387675880,1758805841045,-480.0,0.00019882,2]
[387675882,1758805841054,-511.96,0.00019882,2]
[387675883,1758805841063,-480.0,0.00019882,2]
[387675884,1758805841072,-480.0,0.00019882,2]
[387675885,1758805841081,-480.0,0.00019882,2]
[387675886,1758805841091,-480.0,0.00019882,2]
[387675887,1758805841100,-480.0,0.00019882,2]
[387675888,1758805841109,-480.0,0.00019883,2]
[387675889,1758805841118,-484.13091357,0.00019883,2]
[387675890,1758805841128,-288.54373989,0.00019883,2]
[387675891,1758805841136,-480.0,0.00019883,2]
[387675892,1758805841145,-480.0,0.00019883,2]
[387675893,1758805841154,-600.23467896,0.00019883,2]
[387675894,1758805841163,-480.0,0.00019883,2]
[387675895,1758805841172,-480.0,0.00019883,2]
[387675896,1758805841180,-480.0,0.00019883,2]
[387675897,1758805841187,-480.0,0.00019883,2]
[387675898,1758805841194,-480.0,0.00019883,2]
[387675899,1758805841202,-480.0,0.00019883,2]
[387675900,1758805841211,-480.0,0.00019883,2]
[387675901,1758805841220,-480.0,0.00019883,2]
[387675902,1758805841230,-480.0,0.00019883,2]
[387675903,1758805841239,-480.0,0.00019883,2]
[387675904,1758805841249,-497.69376349,0.00019883,2]
[387675905,1758805841259,-524.91664232,0.00019883,2]
[387675906,1758805841268,-483.91208513,0.00019883,2]
[387675907,1758805841278,-205.42763769,0.00019883,2]
[387675908,1758805841288,-480.0,0.00019883,2]
[387675909,1758805841297,-172.26810399,0.00019883,2]
[387675910,1758805841307,-500.0,0.00019883,2]
[387675911,1758805841318,-480.0,0.00019883,2]
[387675912,1758805841327,-480.0,0.00019883,2]
[387675913,1758805841336,-189.64801575,0.00019883,2]
[387675914,1758805841346,-480.0,0.00019883,2]
[387675915,1758805841355,-480.0,0.00019883,2]
[387675916,1758805841365,-480.0,0.00019883,2]
[387675917,1758805841375,-480.0,0.00019883,2]
[387675918,1758805841385,-220.02284917,0.00019883,2]
[387675919,1758805841394,-584.24,0.00019883,2]
[387675920,1758805841404,-480.0,0.00019883,2]
[387675921,1758805841414,-480.0,0.00019883,2]
[387675922,1758805841423,-480.0,0.00019883,2]
[387675923,1758805841433,-480.0,0.00019883,2]
[387675924,1758805841442,-480.0,0.00019883,2]
[387675925,1758805841452,-458.28222218,0.00019883,2]
[387675926,1758805841461,-480.0,0.00019883,2]
[387675927,1758805841470,-480.0,0.00019883,2]
[387675928,1758805841479,-505.09,0.00019883,2]
[387675929,1758805841489,-480.0,0.00019883,2]
[387675930,1758805841499,-480.0,0.00019883,2]
[387675931,1758805841508,-480.0,0.00019883,2]
[387675932,1758805841517,-480.0,0.00019883,2]
[387675933,1758805841527,-480.0,0.00019883,2]
[387675934,1758805841538,-474.2464124,0.00019883,2]
[387675935,1758805841548,-294.27530751,0.00019883,2]
[387675936,1758805841557,-480.0,0.00019883,2]
[387675937,1758805841567,-480.0,0.00019883,2]
[387675938,1758805841577,-536.43652403,0.00019883,2]
[387675939,1758805841586,-480.0,0.00019883,2]
[387675940,1758805841596,-480.0,0.00019883,2]
[387675941,1758805841605,-480.0,0.00019883,2]
[387675942,1758805841615,-357.08455977,0.00019883,2]
[387675943,1758805841624,-480.0,0.00019883,2]
[387675944,1758805841633,-492.08,0.00019883,2]
[387675945,1758805841643,-480.0,0.00019883,2]
[387675946,1758805841652,-480.0,0.00019883,2]
[387675947,1758805841661,-480.0,0.00019883,2]
[387675948,1758805841670,-480.0,0.00019883,2]
[387675949,1758805841680,-480.0,0.00019883,2]
[387675950,1758805841689,-480.0,0.00019883,2]
[387675951,1758805841699,-480.0,0.00019883,2]
[387675952,1758805841708,-480.0,0.00019883,2]
[387675953,1758805841718,-480.0,0.00019883,2]
[387675954,1758805841727,-480.0,0.00019883,2]
[387675955,1758805841737,-480.0,0.00019883,2]
[387675956,1758805841746,-480.0,0.00019883,2]
[387675957,1758805841756,-229.50846543,0.00019883,2]
[387675958,1758805841766,-480.0,0.00019883,2]
[387675959,1758805841775,-587.70849998,0.00019884,2]
[387675960,1758805841784,-480.0,0.00019884,2]
[387675961,1758805841796,-480.0,0.00019884,2]
[387675962,1758805841806,-585.86381651,0.00019884,2]
[387675963,1758805841815,-480.0,0.00019884,2]
[387675964,1758805841825,-467.64680638,0.00019884,2]
[387675965,1758805841836,-480.0,0.00019884,2]
[387675966,1758805841846,-480.0,0.00019884,2]
[387675967,1758805841855,-480.0,0.00019884,2]
[387675968,1758805841865,-480.0,0.00019884,2]
[387675969,1758805841879,-240.13998335,0.00019884,2]
[387675970,1758805841888,-480.0,0.00019884,2]
[387675971,1758805841898,-496.18705084,0.00019884,2]
[387675972,1758805841907,-480.0,0.00019884,2]
[387675973,1758805841918,-1958.22,0.00019884,2]
[387675974,1758805841929,-472.12,0.00019884,2]
[387675975,1758805841939,-480.0,0.00019884,2]
[387675976,1758805841952,-500.7,0.00019884,2]
[387675977,1758805841962,-480.0,0.00019884,2]
[387675978,1758805841971,-480.0,0.00019884,2]
[387675979,1758805841981,-480.0,0.00019885,2]
[387675980,1758805841991,-387.90262891,0.00019885,2]
[387675981,1758805842000,-480.0,0.00019885,2]
[387675982,1758805842010,-520.43513513,0.00019885,2]
[387675983,1758805842020,-480.0,0.00019885,2]
[387675984,1758805842029,-480.0,0.00019885,2]
[387675985,1758805842038,-480.0,0.00019885,2]
[387675986,1758805842048,-546.65442753,0.00019885,2]
[387675987,1758805842057,-483.59322083,0.00019885,2]
[387675988,1758805842067,-480.0,0.00019885,2]
[387675989,1758805842076,-220.4725537,0.00019885,2]
[387675990,1758805842086,-480.0,0.00019885,2]
[387675991,1758805842095,-506.49776706,0.00019885,2]
[387675992,1758805842105,-480.0,0.00019885,2]
[387675993,1758805842114,-480.0,0.00019885,2]
[387675994,1758805842123,-480.0,0.00019885,2]
[387675995,1758805842133,-480.0,0.00019885,2]
[387675996,1758805842143,-480.0,0.00019885,2]
[387675997,1758805842152,-182.06671853,0.00019885,2]
[387675998,1758805842162,-480.0,0.00019885,2]
[387675999,1758805842171,-480.0,0.00019885,2]
[387676000,1758805842181,-435.67285477,0.00019885,2]
[387676001,1758805842191,-480.0,0.00019885,2]
[387676002,1758805842201,-480.0,0.00019885,2]
[387676003,1758805842211,-480.0,0.00019885,2]
[387676004,1758805842221,-480.0,0.00019885,2]
[387676005,1758805842230,-480.0,0.00019885,2]
[387676006,1758805842240,-480.0,0.00019885,2]
[387676007,1758805842251,-480.0,0.00019885,2]
[387676008,1758805842260,-480.0,0.00019885,2]
[387676009,1758805842270,-480.0,0.00019885,2]
[387676010,1758805842280,-547.07449316,0.00019885,2]
[387676011,1758805842289,-480.0,0.0001989,2]
[387676012,1758805842299,-252.3971773,0.0001989,2]
[387676013,1758805842309,-480.0,0.0001989,2]
[387676014,1758805842318,-480.0,0.0001989,2]
[387676015,1758805842398,-575.48618672,0.0001989,2]
[387676016,1758805842408,-480.0,0.0001989,2]
[387676017,1758805842418,-480.0,0.0001989,2]
[387676018,1758805842428,-480.0,0.0001989,2]
[387676019,1758805842438,-480.0,0.0001989,2]
[387676020,1758805842447,-480.0,0.0001989,2]
[387676021,1758805842457,-312.99740429,0.00019891,2]
[387676022,1758805842467,-487.41511723,0.00019891,2]
[387676023,1758805842477,-480.0,0.00019891,2]
[387676024,1758805842487,-352.08860601,0.00019921,2]
[387676025,1758805842497,-1000.0,0.00019921,2]
[387676026,1758805842506,-1000.0,0.00019921,2]
[387676027,1758805842516,-1000.0,0.00019921,2]
[387676028,1758805842526,-1000.0,0.00019921,2]
[387676029,1758805842535,-1000.0,0.00019921,2]
[387676030,1758805842545,-1000.0,0.00019921,2]
[387676031,1758805842555,-150.0,0.00019927,2]
[387676032,1758805842564,-504.07436454,0.00019973,2]
[387676033,1758805842573,-500.0,0.00019973,2]
[387676035,1758805842583,-504.83976007,0.00019973,2]
[387676037,1758805842593,-238.57457338,0.00019973,2]
[387676038,1758805842602,-500.0,0.00019973,2]
[387676040,1758805842612,-100000.0,0.0001999,2]
[387676042,1758805842621,-160.0,0.0002,3]
[387676044,1758805842631,-597.81364698,0.00020057,2]
[387676046,1758805842642,-480.0,0.00020156,2]
[387676048,1758805842651,-480.0,0.00020156,2]
[387676050,1758805842661,-480.0,0.00020156,2]
[387676052,1758805842671,-480.0,0.00020156,2]
[387676054,1758805842680,-480.0,0.00020156,2]
[387676056,1758805842690,-480.0,0.00020156,2]
[387676057,1758805842699,-629.02,0.00020156,2]
[387676058,1758805842709,-480.0,0.00020156,2]
[387676060,1758805842718,-480.0,0.00020156,2]
[387676062,1758805842728,-480.0,0.00020156,2]
[387676063,1758805842738,-480.0,0.00020156,2]
[387676064,1758805842747,-480.0,0.00020156,2]
[387676065,1758805842756,-480.0,0.00020156,2]
[387676067,1758805842766,-480.0,0.00020157,2]
[387676068,1758805842775,-412.63670184,0.00020157,2]
[387676069,1758805842784,-528.91727054,0.00020157,2]
[387676071,1758805842794,-480.0,0.00020157,2]
[387676072,1758805842803,-480.0,0.00020157,2]
[387676074,1758805842813,-480.0,0.00020157,2]
[387676076,1758805842823,-480.0,0.00020157,2]
[387676078,1758805842833,-480.0,0.00020157,2]
[387676080,1758805842842,-480.0,0.00020157,2]
[387676082,1758805842852,-480.0,0.00020157,2]
[387676083,1758805842861,-480.0,0.00020157,2]
[387676084,1758805842872,-520.54235741,0.00020157,2]
[387676085,1758805842883,-163.49659139,0.00020157,2]
[387676086,1758805842892,-480.0,0.00020157,2]
[387676087,1758805842902,-500.0,0.00020157,2]
[387676088,1758805842911,-480.0,0.00020157,2]
[387676089,1758805842921,-220.74053625,0.00020157,2]
[387676090,1758805842931,-480.0,0.00020157,2]
[387676091,1758805842941,-480.0,0.00020157,2]
[387676092,1758805842951,-480.0,0.00020157,2]
[387676093,1758805842961,-230.74275739,0.00020157,2]
[387676094,1758805842971,-489.99665952,0.00020157,2]
[387676095,1758805842980,-480.0,0.00020157,2]
[387676096,1758805842991,-480.0,0.00020157,2]
[387676098,1758805843000,-480.0,0.00020157,2]
[387676100,1758805843010,-480.0,0.00020157,2]
[387676102,1758805843019,-484.20786749,0.00020157,2]
[387676104,1758805843029,-480.0,0.00020157,2]
[387676106,1758805843040,-480.0,0.00020157,2]
[387676108,1758805843049,-492.08,0.00020157,2]
[387676110,1758805843059,-333.34277028,0.00020157,2]
[387676112,1758805843068,-480.0,0.00020157,2]
[387676114,1758805843078,-480.0,0.00020157,2]
[387676116,1758805843087,-392.45427993,0.00020157,2]
[387676118,1758805843096,-480.0,0.00020157,2]
[387676120,1758805843105,-480.0,0.00020157,2]
[387676122,1758805843114,-480.0,0.00020157,2]
[387676124,1758805843123,-492.79393554,0.00020157,2]
[387676126,1758805843131,-480.0,0.00020157,2]
[387676128,1758805843141,-480.0,0.00020157,2]
[387676129,1758805843151,-565.02299046,0.00020157,2]
[387676132,1758805843160,-480.0,0.00020157,2]
[387676133,1758805843170,-480.0,0.00020158,2]
[387676135,1758805843179,-480.0,0.00020158,2]
[387676137,1758805843189,-480.0,0.00020158,2]
[387676139,1758805843198,-480.0,0.00020158,2]
[387676141,1758805843207,-420.1469432,0.00020158,2]
[387676142,1758805843217,-1958.22,0.00020158,2]
[387676143,1758805843226,-480.0,0.00020158,2]
[387676145,1758805843236,-500.7,0.00020158,2]
[387676147,1758805843245,-480.0,0.00020158,2]
[387676149,1758805843254,-480.0,0.00020158,2]
[387676151,1758805843263,-480.0,0.00020159,2]
[387676153,1758805843272,-480.0,0.00020159,2]
[387676154,1758805843282,-518.82647231,0.00020159,2]
[387676155,1758805843291,-480.0,0.00020159,2]
[387676156,1758805843301,-480.0,0.00020159,2]
[387676158,1758805843311,-480.0,0.00020159,2]
[387676160,1758805843319,-480.0,0.00020159,2]
[387676162,1758805843329,-483.58764596,0.00020159,2]
[387676164,1758805843338,-480.0,0.00020159,2]
[387676166,1758805843347,-491.20635136,0.00020159,2]
[387676168,1758805843357,-480.0,0.00020159,2]
[387676170,1758805843367,-480.0,0.00020159,2]
[387676172,1758805843376,-480.0,0.00020159,2]
[387676174,1758805843385,-480.0,0.00020159,2]
[387676176,1758805843394,-480.0,0.00020159,2]
[387676178,1758805843403,-480.0,0.00020159,2]
[387676180,1758805843412,-163.31603355,0.00020159,2]
[387676182,1758805843423,-480.0,0.00020159,2]
[387676184,1758805843433,-493.72609483,0.00020159,2]
[387676186,1758805843442,-249.31148458,0.00020164,2]
[387676188,1758805843451,-480.0,0.00020164,2]
[387676190,1758805843460,-480.0,0.00020164,2]
[387676192,1758805843470,-480.0,0.00020164,2]
[387676194,1758805843479,-480.0,0.00020164,2]
[387676196,1758805843488,-480.0,0.00020164,2]
[387676198,1758805843497,-574.11963063,0.00020165,2]
[387676200,1758805843506,-432.17444959,0.00020221,2]
[387676202,1758805843516,-934.54488845,0.00020396,2]
[387676204,1758805843525,-700.0,0.000204,3]
[387676206,1758805843535,-413.75082658,0.00020414,2]
[387676208,1758805843546,-1000.0,0.00020421,2]
[387676210,1758805843555,-480.0,0.0002043,2]
[387676212,1758805843564,-480.0,0.0002043,2]
[387676214,1758805843573,-480.0,0.0002043,2]
[387676216,1758805843582,-480.0,0.0002043,2]
[387676218,1758805843592,-480.0,0.0002043,2]
[387676220,1758805843601,-480.0,0.0002043,2]
[387676222,1758805843611,-480.0,0.0002043,2]
[387676224,1758805843621,-401.31,0.0002043,2]
[387676226,1758805843630,-480.0,0.0002043,2]
[387676228,1758805843639,-480.0,0.0002043,2]
[387676230,1758805843649,-480.0,0.0002043,2]
[387676232,1758805843658,-480.0,0.00020431,2]
[387676234,1758805843668,-480.0,0.00020431,2]
[387676236,1758805843677,-480.0,0.00020431,2]